[Event "Fagernes Chess Open 2025"]
[Site "Fagernes"]
[Date "2025.04.16"]
[Round "5.1"]
[White "Hansen, Thobias Gotaas"]
[Black "Stai, Sondre"]
[Result "0-1"]
[Annotator "NA RC"]
[ECO "C47"]
[WhiteElo "1805"]
[BlackElo "1786"]
[PlyCount "72"]
[EventDate "2025.04.12"]
[EventCountry "NOR"]
[SourceTitle "playchess.com"]
[Source "ChessBase"]
[SourceQuality "1"]
[TimeControl "40/6000+30:2400+30"]

1. e4 {[%emt 0:00:04]} e5 {[%emt 0:00:03]} 2. Nf3 {[%emt 0:00:11]} Nf6 {[%emt 0:00:05]} 3. Nc3 {[%emt 0:00:10]} Nc6 {[%emt 0:00:13]} 4. h3 {[%emt 0:00:09]} Be7 {[%emt 0:06:55]} 5. d4 {[%emt 0:00:55]} d6 {[%emt 0:01:48]} 6. Be3 {[%emt 0:04:21]} O-O {[%emt 0:01:31]} 7. g4 {[%emt 0:00:13]} exd4 {[%emt 0:02:10]} 8. Nxd4 {[%emt 0:00:42]} Nxd4 {[%emt 0:01:25]} 9. Qxd4 {[%emt 0:01:02]} Re8 {[%emt 0:06:42]} 10. Bg2 {[%emt 0:03:45]} c5 {[%emt 0:09:34]} 11. Qd2 {[%emt 0:02:11]} Nd7 {[%emt 0:03:15]} 12. O-O {[%emt 0:03:12]} Ne5 {[%emt 0:01:23]} 13. b3 {[%emt 0:10:06]} Bd7 {[%emt 0:00:43]} 14. f4 {[%emt 0:02:12]} Ng6 {[%emt 0:00:47]} 15. Rad1 {[%emt 0:05:06]} Bc6 {[%emt 0:01:21]} 16. Nd5 {[%emt 0:01:41]} Bf8 {[%emt 0:01:12]} 17. g5 {[%emt 0:06:58]} a5 {[%emt 0:02:29]} 18. Qf2 {[%emt 0:15:54]} a4 {[%emt 0:00:57]} 19. Bxc5 {[%emt 0:12:19]} dxc5 {[%emt 0:01:01]} 20. Nf6+ {[%emt 0:02:23]} gxf6 {[%emt 0:00:15]} 21. Rxd8 {[%emt 0:01:01]} Raxd8 {[%emt 0:01:00]} 22. f5 {[%emt 0:05:08]} Ne5 {[%emt 0:03:57]} 23. gxf6 {[%emt 0:01:36]} axb3 {[%emt 0:01:36]} 24. axb3 {[%emt 0:01:49]} c4 {[%emt 0:01:43]} 25. bxc4 {[%emt 0:04:09]} Nxc4 {[%emt 0:05:02]} 26. Qg3+ {[%emt 0:08:09]} Kh8 {[%emt 0:00:48]} 27. Rf4 {[%emt 0:01:38]} Bc5+ {[%emt 0:09:17]} 28. Kf1 {[%emt 0:04:56]} Ne3+ {[%emt 0:09:32]} 29. Ke2 {[%emt 0:00:52]} Rg8 {[%emt 0:00:40]} 30. Rg4 {[%emt 0:03:04]} Nxg4 {[%emt 0:01:10]} 31. hxg4 {[%emt 0:00:31]} Rge8 {[%emt 0:06:37]} 32. Qf4 {[%emt 0:03:43]} Rd4 {[%emt 0:08:32]} 33. Qc7 {[%emt 0:04:36]} Rd7 {[%emt 0:03:12]} 34. Qf4 {[%emt 0:00:55]} Red8 {[%emt 0:06:11]} 35. c3 {[%emt 0:01:45]} Bb5+ {[%emt 0:01:45]} 36. Ke1 {[%emt 0:00:32]} Rd1# {[%emt 0:00:51]} 0-1

[Event "Fagernes Chess Open 2025"]
[Site "Fagernes"]
[Date "2025.04.16"]
[Round "5.2"]
[White "Arulmaran, Abishan"]
[Black "Ali, Karim"]
[Result "0-1"]
[Annotator "NA RC"]
[ECO "C07"]
[WhiteElo "1858"]
[BlackElo "1876"]
[PlyCount "48"]
[EventDate "2025.04.12"]
[EventCountry "NOR"]
[SourceTitle "playchess.com"]
[Source "ChessBase"]
[SourceQuality "1"]
[TimeControl "40/6000+30:2400+30"]

1. e4 {[%emt 0:00:20]} e6 {[%emt 0:04:49]} 2. d4 {[%emt 0:01:30]} d5 {[%emt 0:00:41]} 3. Nd2 {[%emt 0:01:33]} c5 {[%emt 0:00:05]} 4. Ngf3 {[%emt 0:01:43]} cxd4 {[%emt 0:00:19]} 5. Nxd4 {[%emt 0:00:20]} e5 {[%emt 0:04:00]} 6. N4f3 {[%emt 0:05:55]} dxe4 {[%emt 0:02:47]} 7. Nxe5 {[%emt 0:02:20]} Qd5 {[%emt 0:04:19]} 8. Ng4 {[%emt 0:02:50]} f5 {[%emt 0:11:05]} 9. Bc4 {[%emt 0:01:53]} Qd6 {[%emt 0:05:23]} 10. Ne3 {[%emt 0:01:37]} Nf6 {[%emt 0:00:43]} 11. O-O {[%emt 0:04:06]} Nc6 {[%emt 0:06:59]} 12. Re1 {[%emt 0:02:08]} Be7 {[%emt 0:05:56]} 13. Bb3 {[%emt 0:11:06]} Be6 {[%emt 0:05:51]} 14. Nec4 {[%emt 0:03:28]} Qd7 {[%emt 0:04:12]} 15. f3 {[%emt 0:01:36]} b5 {[%emt 0:09:23]} 16. Ne3 {[%emt 0:03:19]} f4 {[%emt 0:03:40]} 17. Bxe6 {[%emt 0:04:02]} Qxe6 {[%emt 0:01:25]} 18. Nef1 {[%emt 0:04:41]} e3 {[%emt 0:03:04]} 19. Ne4 {[%emt 0:03:39]} Nxe4 {[%emt 0:04:58]} 20. fxe4 {[%emt 0:02:05]} O-O {[%emt 0:01:01]} 21. c3 {[%emt 0:01:50]} Qxe4 {[%emt 0:02:26]} 22. Nd2 {[%emt 0:00:56]} Qd5 {[%emt 0:04:14]} 23. Qf3 {[%emt 0:07:59]} Qxf3 {[%emt 0:00:51]} 24. Nxf3 {[%emt 0:00:54]} g5 {[%emt 0:01:22]} 0-1

[Event "Fagernes Chess Open 2025"]
[Site "Fagernes"]
[Date "2025.04.16"]
[Round "5.3"]
[White "Andersen, Guttorm"]
[Black "Kopperud, Vidar Aleksander"]
[Result "1/2-1/2"]
[Annotator "NA RC"]
[ECO "E43"]
[WhiteElo "1842"]
[BlackElo "1778"]
[PlyCount "38"]
[EventDate "2025.04.12"]
[EventCountry "NOR"]
[SourceTitle "playchess.com"]
[Source "ChessBase"]
[SourceQuality "1"]
[TimeControl "40/6000+30:2400+30"]

1. d4 {[%emt 0:00:02]} Nf6 {[%emt 0:00:08]} 2. c4 {[%emt 0:00:26]} e6 {[%emt 0:00:07]} 3. e3 {[%emt 0:00:07]} b6 {[%emt 0:00:46]} 4. Nc3 {[%emt 0:04:11]} Bb4 {[%emt 0:00:57]} 5. Bd3 {[%emt 0:00:21]} Bb7 {[%emt 0:00:17]} 6. Nf3 {[%emt 0:00:19]} O-O {[%emt 0:00:37]} 7. Bd2 {[%emt 0:03:53]} d5 {[%emt 0:01:44]} 8. O-O {[%emt 0:00:52]} c5 {[%emt 0:02:34]} 9. a3 {[%emt 0:13:17]} Bxc3 {[%emt 0:01:13]} 10. bxc3 {[%emt 0:01:52]} Nbd7 {[%emt 0:03:44]} 11. cxd5 {[%emt 0:02:28]} exd5 {[%emt 0:02:00]} 12. c4 {[%emt 0:06:45]} Ne4 {[%emt 0:14:02]} 13. cxd5 {[%emt 0:01:26]} Bxd5 {[%emt 0:01:06]} 14. Bxe4 {[%emt 0:06:55]} Bxe4 {[%emt 0:01:25]} 15. Bc3 {[%emt 0:01:20]} Rc8 {[%emt 0:18:40]} 16. dxc5 {[%emt 0:05:34]} Nxc5 {[%emt 0:01:23]} 17. Qd4 {[%emt 0:10:39]} Qxd4 {[%emt 0:01:39]} 18. Nxd4 {[%emt 0:07:56]} Nb3 {[%emt 0:05:55]} 19. Nxb3 {[%emt 0:00:05]} Rxc3 {[%emt 0:00:18]} 1/2-1/2

[Event "Fagernes Chess Open 2025"]
[Site "Fagernes"]
[Date "2025.04.16"]
[Round "5.4"]
[White "Neukamm, Christian"]
[Black "Brattgjerd, August Minh"]
[Result "1/2-1/2"]
[Annotator "NA RC"]
[ECO "C11"]
[WhiteElo "1776"]
[BlackElo "1845"]
[PlyCount "62"]
[EventDate "2025.04.12"]
[EventCountry "NOR"]
[SourceTitle "playchess.com"]
[Source "ChessBase"]
[SourceQuality "1"]
[TimeControl "40/6000+30:2400+30"]

1. e4 {[%emt 0:00:03]} e6 {[%emt 0:04:45]} 2. d4 {[%emt 0:00:32]} d5 {[%emt 0:00:06]} 3. Nc3 {[%emt 0:00:18]} Nf6 {[%emt 0:00:08]} 4. e5 {[%emt 0:00:17]} Nfd7 {[%emt 0:00:04]} 5. f4 {[%emt 0:00:23]} c5 {[%emt 0:00:04]} 6. Nf3 {[%emt 0:00:35]} Nc6 {[%emt 0:00:07]} 7. Be3 {[%emt 0:00:36]} Qb6 {[%emt 0:00:21]} 8. Na4 {[%emt 0:01:30]} Qa5+ {[%emt 0:00:11]} 9. c3 {[%emt 0:00:18]} b6 {[%emt 0:00:33]} 10. Bd2 {[%emt 0:05:17]} c4 {[%emt 0:00:28]} 11. b4 {[%emt 0:02:17]} Qa6 {[%emt 0:02:39]} 12. g3 {[%emt 0:07:42]} Be7 {[%emt 0:04:08]} 13. Bg2 {[%emt 0:00:49]} Nf8 {[%emt 0:02:49]} 14. Qc2 {[%emt 0:00:40]} Bd7 {[%emt 0:02:53]} 15. Nb2 {[%emt 0:00:33]} h6 {[%emt 0:12:04]} 16. a4 {[%emt 0:06:10]} Qb7 {[%emt 0:03:56]} 17. Nd1 {[%emt 0:06:56]} O-O-O {[%emt 0:14:13]} 18. Ne3 {[%emt 0:02:35]} f5 {[%emt 0:02:52]} 19. h4 {[%emt 0:14:48]} Be8 {[%emt 0:04:12]} 20. Bc1 {[%emt 0:03:10]} a6 {[%emt 0:02:57]} 21. Nd2 {[%emt 0:01:04]} b5 {[%emt 0:06:40]} 22. Bb2 {[%emt 0:01:54]} Kb8 {[%emt 0:06:46]} 23. axb5 {[%emt 0:02:22]} axb5 {[%emt 0:01:56]} 24. Kf2 {[%emt 0:00:48]} Rc8 {[%emt 0:02:56]} 25. Ra3 {[%emt 0:03:00]} Nd7 {[%emt 0:05:59]} 26. Rha1 {[%emt 0:12:30]} Nb6 {[%emt 0:02:45]} 27. Bc1 {[%emt 0:02:18]} Bd7 {[%emt 0:04:17]} 28. Nd1 {[%emt 0:02:00]} Rhg8 {[%emt 0:02:47]} 29. Nf1 {[%emt 0:00:19]} Kc7 {[%emt 0:01:56]} 30. Be3 {[%emt 0:05:38]} Na4 {[%emt 0:04:30]} 31. Nb2 {[%emt 0:00:38]} Nb6 {[%emt 0:01:23]} 1/2-1/2

[Event "Fagernes Chess Open 2025"]
[Site "Fagernes"]
[Date "2025.04.16"]
[Round "5.5"]
[White "Vollheim, Daniel O"]
[Black "Aroven, Mikael"]
[Result "1-0"]
[Annotator "RC"]
[ECO "A25"]
[WhiteElo "1764"]
[BlackElo "2145"]
[PlyCount "69"]
[EventDate "2025.04.12"]
[EventCountry "NOR"]
[SourceTitle "playchess.com"]
[Source "ChessBase"]
[SourceQuality "1"]
[TimeControl "40/6000+30:2400+30"]

1. c4 {[%emt 0:00:04]} e5 {[%emt 0:01:32]} 2. Nc3 {[%emt 0:00:17]} Nc6 {[%emt 0:00:04]} 3. g3 {[%emt 0:00:13]} Bc5 {[%emt 0:00:08]} 4. Bg2 {[%emt 0:00:08]} a6 {[%emt 0:01:10]} 5. e3 {[%emt 0:01:32]} d6 {[%emt 0:00:08]} 6. Nge2 {[%emt 0:00:08]} Ba7 {[%emt 0:00:08]} 7. O-O {[%emt 0:01:21]} h5 {[%emt 0:00:28]} 8. d4 {[%emt 0:01:29]} h4 {[%emt 0:00:25]} 9. dxe5 {[%emt 0:28:11]} Nxe5 {[%emt 0:00:48]} 10. b3 {[%emt 0:01:44]} hxg3 {[%emt 0:00:25]} 11. hxg3 {[%emt 0:00:34]} Qf6 {[%emt 0:04:47]} 12. Nf4 {[%emt 0:03:35]} Qh6 {[%emt 0:13:02]} 13. Re1 {[%emt 0:07:40]} Bg4 {[%emt 0:08:05]} 14. f3 {[%emt 0:10:41]} Qh2+ {[%emt 0:07:46]} 15. Kf1 {[%emt 0:00:37]} Qxg3 {[%emt 0:02:36]} 16. fxg4 {[%emt 0:01:45]} Nxg4 {[%emt 0:00:08]} 17. Ne4 {[%emt 0:00:21]} Qh4 {[%emt 0:06:51]} 18. Ke2 {[%emt 0:14:28]} O-O-O {[%emt 0:00:07]} 19. Rh1 {[%emt 0:03:11]} Nh2 {[%emt 0:00:02]} 20. Qd5 {[%emt 0:02:11]} Qg4+ {[%emt 0:05:53]} 21. Ke1 {[%emt 0:03:30]} Ne7 {[%emt 0:08:16]} 22. Qg5 {[%emt 0:06:27]} Nf3+ {[%emt 0:01:11]} 23. Bxf3 {[%emt 0:00:42]} Qxf3 {[%emt 0:00:06]} 24. Rxh8 {[%emt 0:00:22]} Rxh8 {[%emt 0:00:01]} 25. Qxe7 {[%emt 0:05:18]} Rh1+ {[%emt 0:02:28]} 26. Kd2 {[%emt 0:00:18]} Bxe3+ {[%emt 0:12:00]} 27. Kc2 {[%emt 0:00:16]} Qd1+ {[%emt 0:03:33]} 28. Kc3 {[%emt 0:00:24]} Qd4+ {[%emt 0:13:03]} 29. Kb4 {[%emt 0:00:31]} Qb6+ {[%emt 0:13:56]} 30. Kc3 {[%emt 0:01:01]} Kb8 {[%emt 0:02:44]} 31. Nd5 {[%emt 0:01:13]} Qd4+ {[%emt 0:02:31]} 32. Kb4 {[%emt 0:00:58]} Bxc1 {[%emt 0:00:39]} 33. Qxc7+ {[%emt 0:00:07]} Ka7 {[%emt 0:00:09]} 34. Nxd6 {[%emt 0:01:08]} Bd2+ {[%emt 0:01:33]} 35. Ka4 {[%emt 0:00:06]} 1-0

[Event "Fagernes Chess Open 2025"]
[Site "Fagernes"]
[Date "2025.04.16"]
[Round "5.6"]
[White "Sivaparan, Isai"]
[Black "Lysen, Terje Kevin G"]
[Result "1-0"]
[Annotator "RC"]
[ECO "B13"]
[WhiteElo "1944"]
[BlackElo "1667"]
[PlyCount "79"]
[EventDate "2025.04.12"]
[EventCountry "NOR"]
[SourceTitle "playchess.com"]
[Source "ChessBase"]
[SourceQuality "1"]
[TimeControl "40/6000+30:2400+30"]

1. e4 {[%emt 0:00:03]} c6 {[%emt 0:00:07]} 2. d4 {[%emt 0:00:09]} d5 {[%emt 0:00:03]} 3. exd5 {[%emt 0:00:19]} cxd5 {[%emt 0:00:05]} 4. Bd3 {[%emt 0:00:19]} Nf6 {[%emt 0:00:51]} 5. h3 {[%emt 0:00:33]} Nc6 {[%emt 0:01:13]} 6. c3 {[%emt 0:00:12]} g6 {[%emt 0:02:51]} 7. Nf3 {[%emt 0:01:05]} Bg7 {[%emt 0:00:23]} 8. O-O {[%emt 0:00:42]} O-O {[%emt 0:00:18]} 9. Bf4 {[%emt 0:01:23]} Re8 {[%emt 0:04:40]} 10. Re1 {[%emt 0:01:06]} a6 {[%emt 0:02:38]} 11. Nbd2 {[%emt 0:05:54]} Nd7 {[%emt 0:06:31]} 12. Qb3 {[%emt 0:08:45]} e6 {[%emt 0:16:02]} 13. Rac1 {[%emt 0:14:12]} b5 {[%emt 0:06:53]} 14. Ne5 {[%emt 0:03:50]} Ncxe5 {[%emt 0:04:25]} 15. dxe5 {[%emt 0:02:56]} Bb7 {[%emt 0:12:17]} 16. Nf3 {[%emt 0:03:05]} Rc8 {[%emt 0:01:15]} 17. Bb1 {[%emt 0:04:58]} Bf8 {[%emt 0:07:11]} 18. Nd4 {[%emt 0:08:51]} Nc5 {[%emt 0:05:25]} 19. Qd1 {[%emt 0:01:32]} Be7 {[%emt 0:11:21]} 20. Qg4 {[%emt 0:03:06]} Ne4 {[%emt 0:09:36]} 21. a3 {[%emt 0:05:56]} a5 {[%emt 0:09:03]} 22. Bxe4 {[%emt 0:09:27]} dxe4 {[%emt 0:00:07]} 23. Nxb5 {[%emt 0:00:56]} Qb6 {[%emt 0:05:14]} 24. Qe2 {[%emt 0:01:33]} Red8 {[%emt 0:02:09]} 25. Be3 {[%emt 0:05:08]} Bc5 {[%emt 0:00:35]} 26. Bxc5 {[%emt 0:00:37]} Rxc5 {[%emt 0:00:10]} 27. Nd6 {[%emt 0:01:55]} Ba8 {[%emt 0:01:32]} 28. b4 {[%emt 0:01:35]} Rc7 {[%emt 0:00:35]} 29. b5 {[%emt 0:01:57]} Qc5 {[%emt 0:00:43]} 30. a4 {[%emt 0:01:24]} Qxe5 {[%emt 0:00:18]} 31. Nxe4 {[%emt 0:03:43]} Rdc8 {[%emt 0:00:53]} 32. c4 {[%emt 0:01:06]} Bxe4 {[%emt 0:00:22]} 33. Qxe4 {[%emt 0:00:13]} Qb2 {[%emt 0:00:06]} 34. Rb1 {[%emt 0:05:26]} Qa3 {[%emt 0:00:58]} 35. b6 {[%emt 0:00:29]} Re7 {[%emt 0:00:33]} 36. b7 {[%emt 0:00:51]} Rb8 {[%emt 0:00:23]} 37. Qc6 {[%emt 0:00:25]} Ree8 {[%emt 0:00:21]} 38. Red1 {[%emt 0:00:36]} Qc3 {[%emt 0:00:28]} 39. c5 {[%emt 0:01:06]} Qc2 {[%emt 0:00:34]} 40. Qb6 {[%emt 0:00:57]} 1-0

[Event "Fagernes Chess Open 2025"]
[Site "Fagernes"]
[Date "2025.04.16"]
[Round "5.7"]
[White "Solbu, August"]
[Black "Abrahamsson, Roaul"]
[Result "1-0"]
[Annotator "RC"]
[ECO "C41"]
[WhiteElo "1887"]
[BlackElo "1920"]
[PlyCount "81"]
[EventDate "2025.04.12"]
[EventCountry "NOR"]
[SourceTitle "playchess.com"]
[Source "ChessBase"]
[SourceQuality "1"]
[TimeControl "40/6000+30:2400+30"]

1. e4 {[%emt 0:00:05]} d6 {[%emt 0:00:26]} 2. Nc3 {[%emt 0:00:02]} Nf6 {[%emt 0:01:12]} 3. d4 {[%emt 0:00:10]} Nbd7 {[%emt 0:00:38]} 4. Nf3 {[%emt 0:01:15]} e5 {[%emt 0:00:27]} 5. Bc4 {[%emt 0:05:17]} h6 {[%emt 0:00:23]} 6. h3 {[%emt 0:01:45]} c6 {[%emt 0:02:40]} 7. Bb3 {[%emt 0:01:26]} Qc7 {[%emt 0:06:35]} 8. Be3 {[%emt 0:02:47]} Be7 {[%emt 0:01:14]} 9. O-O {[%emt 0:01:54]} Nf8 {[%emt 0:05:05]} 10. Qd2 {[%emt 0:03:00]} g5 {[%emt 0:01:22]} 11. Nh2 {[%emt 0:09:34]} Ng6 {[%emt 0:01:01]} 12. Rad1 {[%emt 0:03:51]} Nf4 {[%emt 0:00:44]} 13. a4 {[%emt 0:04:18]} Bd7 {[%emt 0:07:48]} 14. Rfe1 {[%emt 0:02:24]} h5 {[%emt 0:05:12]} 15. Bxf4 {[%emt 0:03:20]} gxf4 {[%emt 0:00:31]} 16. Kh1 {[%emt 0:00:58]} O-O-O {[%emt 0:06:55]} 17. Bc4 {[%emt 0:08:23]} Nh7 {[%emt 0:07:40]} 18. b4 {[%emt 0:04:06]} Ng5 {[%emt 0:03:41]} 19. Be2 {[%emt 0:03:08]} Ne6 {[%emt 0:02:53]} 20. Nf3 {[%emt 0:02:21]} Bf6 {[%emt 0:03:39]} 21. d5 {[%emt 0:05:11]} Nd4 {[%emt 0:01:21]} 22. Nxd4 {[%emt 0:02:18]} exd4 {[%emt 0:00:04]} 23. Nb1 {[%emt 0:00:29]} cxd5 {[%emt 0:09:23]} 24. exd5 {[%emt 0:00:36]} Be5 {[%emt 0:01:58]} 25. a5 {[%emt 0:04:34]} Kb8 {[%emt 0:03:30]} 26. f3 {[%emt 0:03:15]} Rhg8 {[%emt 0:06:56]} 27. Bf1 {[%emt 0:02:44]} Rg3 {[%emt 0:00:38]} 28. Na3 {[%emt 0:08:23]} Rdg8 {[%emt 0:03:05]} 29. Nc4 {[%emt 0:03:58]} Bb5 {[%emt 0:09:25]} 30. Nxe5 {[%emt 0:01:58]} Bxf1 {[%emt 0:01:55]} 31. Rxf1 {[%emt 0:01:58]} dxe5 {[%emt 0:00:27]} 32. Rf2 {[%emt 0:01:33]} Qd7 {[%emt 0:04:31]} 33. Qe2 {[%emt 0:03:33]} Rc8 {[%emt 0:02:40]} 34. Qxe5+ {[%emt 0:00:32]} Ka8 {[%emt 0:01:37]} 35. Qxf4 {[%emt 0:00:46]} Rcg8 {[%emt 0:00:40]} 36. Rxd4 {[%emt 0:01:31]} Qa4 {[%emt 0:03:14]} 37. Rd1 {[%emt 0:00:57]} Qd7 {[%emt 0:00:29]} 38. d6 {[%emt 0:00:58]} f5 {[%emt 0:01:20]} 39. Qe5 {[%emt 0:01:13]} Qd8 {[%emt 0:00:59]} 40. d7 {[%emt 0:00:56]} h4 {[%emt 0:00:17]} 41. a6 {[%emt 0:40:44]} 1-0

[Event "Fagernes Chess Open 2025"]
[Site "Fagernes"]
[Date "2025.04.16"]
[Round "5.8"]
[White "Digernes, Mikael"]
[Black "Rynning, Rune Kleiven"]
[Result "1/2-1/2"]
[Annotator "NA RC"]
[ECO "D00"]
[WhiteElo "1781"]
[BlackElo "1776"]
[PlyCount "61"]
[EventDate "2025.04.12"]
[EventCountry "NOR"]
[SourceTitle "playchess.com"]
[Source "ChessBase"]
[SourceQuality "1"]
[TimeControl "40/6000+30:2400+30"]

1. e4 {[%emt 0:00:23]} c6 {[%emt 0:00:07]} 2. d4 {[%emt 0:01:11]} d5 {[%emt 0:00:08]} 3. Nc3 {[%emt 0:00:05]} dxe4 {[%emt 0:00:15]} 4. Bc4 {[%emt 0:00:14]} Nf6 {[%emt 0:07:13]} 5. f3 {[%emt 0:00:17]} exf3 {[%emt 0:00:40]} 6. Nxf3 {[%emt 0:00:09]} Nbd7 {[%emt 0:07:54]} 7. Ng5 {[%emt 0:33:36]} e6 {[%emt 0:01:57]} 8. Bxe6 {[%emt 0:05:44]} fxe6 {[%emt 0:05:31]} 9. Nxe6 {[%emt 0:00:08]} Qe7 {[%emt 0:00:28]} 10. Qe2 {[%emt 0:01:12]} Kf7 {[%emt 0:01:42]} 11. Ng5+ {[%emt 0:12:38]} Kg8 {[%emt 0:00:23]} 12. Nce4 {[%emt 0:02:14]} Nb6 {[%emt 0:03:36]} 13. O-O {[%emt 0:03:03]} h6 {[%emt 0:05:50]} 14. Nxf6+ {[%emt 0:12:27]} gxf6 {[%emt 0:00:16]} 15. Qxe7 {[%emt 0:04:18]} Bxe7 {[%emt 0:00:55]} 16. Ne4 {[%emt 0:00:17]} Kg7 {[%emt 0:04:18]} 17. a4 {[%emt 0:03:07]} f5 {[%emt 0:05:49]} 18. Ng3 {[%emt 0:02:31]} Kg6 {[%emt 0:00:17]} 19. Bf4 {[%emt 0:05:07]} Bf6 {[%emt 0:04:25]} 20. Be5 {[%emt 0:00:43]} Bxe5 {[%emt 0:01:22]} 21. dxe5 {[%emt 0:00:07]} Nc4 {[%emt 0:01:39]} 22. Rad1 {[%emt 0:03:12]} Re8 {[%emt 0:06:37]} 23. b3 {[%emt 0:02:52]} Ne3 {[%emt 0:06:27]} 24. Rd6+ {[%emt 0:00:35]} Be6 {[%emt 0:01:23]} 25. Rf3 {[%emt 0:00:59]} Nxc2 {[%emt 0:05:53]} 26. Rxf5 {[%emt 0:01:14]} Kh7 {[%emt 0:08:58]} 27. Rf6 {[%emt 0:00:20]} Bxb3 {[%emt 0:01:11]} 28. Rd7+ {[%emt 0:13:28]} Kg8 {[%emt 0:00:10]} 29. Rg6+ {[%emt 0:02:05]} Kf8 {[%emt 0:00:02]} 30. Rf6+ {[%emt 0:00:32]} Kg8 {[%emt 0:00:08]} 31. Rg6+ {[%emt 0:00:07]} 1/2-1/2

[Event "Fagernes Chess Open 2025"]
[Site "Fagernes"]
[Date "2025.04.16"]
[Round "5.9"]
[White "Odden, Jan Ove"]
[Black "Kuzmenko, Mykhailo"]
[Result "0-1"]
[Annotator "NA RC"]
[ECO "B15"]
[WhiteElo "1720"]
[BlackElo "1747"]
[PlyCount "116"]
[EventDate "2025.04.12"]
[EventCountry "NOR"]
[SourceTitle "playchess.com"]
[Source "ChessBase"]
[SourceQuality "1"]
[TimeControl "40/6000+30:2400+30"]

1. e4 {[%emt 0:00:10]} c6 {[%emt 0:00:05]} 2. d4 {[%emt 0:01:11]} d5 {[%emt 0:00:08]} 3. Nc3 {[%emt 0:00:11]} dxe4 {[%emt 0:00:15]} 4. Nxe4 {[%emt 0:00:06]} Nf6 {[%emt 0:00:10]} 5. Nxf6+ {[%emt 0:00:42]} exf6 {[%emt 0:00:03]} 6. Be3 {[%emt 0:02:22]} Bd6 {[%emt 0:00:56]} 7. Bd3 {[%emt 0:01:24]} Na6 {[%emt 0:00:40]} 8. Nf3 {[%emt 0:04:40]} Nb4 {[%emt 0:01:33]} 9. O-O {[%emt 0:01:46]} Nxd3 {[%emt 0:00:24]} 10. Qxd3 {[%emt 0:00:43]} O-O {[%emt 0:02:04]} 11. h3 {[%emt 0:03:41]} Re8 {[%emt 0:03:11]} 12. Rad1 {[%emt 0:02:17]} g6 {[%emt 0:06:24]} 13. c4 {[%emt 0:08:32]} Bf5 {[%emt 0:01:48]} 14. Qb3 {[%emt 0:02:23]} Qc8 {[%emt 0:03:59]} 15. Bh6 {[%emt 0:20:06]} Bxh3 {[%emt 0:04:41]} 16. Ng5 {[%emt 0:07:33]} fxg5 {[%emt 0:05:45]} 17. gxh3 {[%emt 0:01:21]} Qf5 {[%emt 0:00:31]} 18. c5 {[%emt 0:04:56]} Bc7 {[%emt 0:08:20]} 19. Qd3 {[%emt 0:01:18]} Qf4 {[%emt 0:19:23]} 20. Qg3 {[%emt 0:00:46]} Qxg3+ {[%emt 0:06:17]} 21. fxg3 {[%emt 0:00:32]} Re3 {[%emt 0:06:24]} 22. d5 {[%emt 0:09:18]} Rxg3+ {[%emt 0:08:23]} 23. Kf2 {[%emt 0:00:37]} cxd5 {[%emt 0:03:43]} 24. Rxd5 {[%emt 0:00:36]} Rxh3 {[%emt 0:03:14]} 25. Bxg5 {[%emt 0:00:43]} Rh5 {[%emt 0:01:15]} 26. Rfd1 {[%emt 0:06:55]} Kg7 {[%emt 0:00:11]} 27. Be7 {[%emt 0:04:50]} Rh2+ {[%emt 0:03:08]} 28. Kf3 {[%emt 0:00:39]} Rh3+ {[%emt 0:05:50]} 29. Kg4 {[%emt 0:08:55]} Rg3+ {[%emt 0:01:03]} 30. Kh4 {[%emt 0:00:28]} h5 {[%emt 0:02:18]} 31. Bd6 {[%emt 0:01:19]} Rg4+ {[%emt 0:00:19]} 32. Kh3 {[%emt 0:00:34]} Bd8 {[%emt 0:00:38]} 33. Be5+ {[%emt 0:00:47]} Bf6 {[%emt 0:00:23]} 34. Bxf6+ {[%emt 0:01:46]} Kxf6 {[%emt 0:00:03]} 35. Rf1+ {[%emt 0:00:22]} Ke6 {[%emt 0:02:40]} 36. Rd6+ {[%emt 0:01:01]} Ke7 {[%emt 0:00:02]} 37. Re1+ {[%emt 0:01:10]} Kf8 {[%emt 0:00:14]} 38. Rd7 {[%emt 0:01:24]} Rc8 {[%emt 0:04:49]} 39. Ree7 {[%emt 0:01:08]} Rf4 {[%emt 0:00:11]} 40. Rc7 {[%emt 0:06:37]} Rxc7 {[%emt 0:01:39]} 41. Rxc7 {[%emt 0:40:09]} Rb4 {[%emt 0:40:05]} 42. b3 {[%emt 0:00:40]} Kg7 {[%emt 0:00:26]} 43. c6 {[%emt 0:01:40]} bxc6 {[%emt 0:00:11]} 44. Rxc6 {[%emt 0:00:12]} Rb7 {[%emt 0:04:10]} 45. Rc4 {[%emt 0:00:00]} g5 {[%emt 0:00:00]} 46. b4 {[%emt 0:00:00]} Kg6 {[%emt 0:00:00]} 47. a4 {[%emt 0:00:00]} Rd7 {[%emt 0:00:00]} 48. b5 {[%emt 0:00:00]} g4+ {[%emt 0:00:00]} 49. Kg2 {[%emt 0:00:00]} Kg5 {[%emt 0:00:00]} 50. a5 {[%emt 0:00:00]} Rd2+ {[%emt 0:00:00]} 51. Kg1 {[%emt 0:00:00]} Rb2 {[%emt 0:00:00]} 52. Rc5+ {[%emt 0:00:00]} f5 {[%emt 0:00:00]} 53. a6 {[%emt 0:00:00]} h4 {[%emt 0:00:00]} 54. Rc7 {[%emt 0:00:00]} Rxb5 {[%emt 0:00:00]} 55. Rxa7 {[%emt 0:00:00]} Ra5 {[%emt 0:00:00]} 56. Ra8 {[%emt 0:00:00]} Kf4 {[%emt 0:00:00]} 57. a7 {[%emt 0:00:00]} Kg3 {[%emt 0:00:00]} 58. Kf1 {[%emt 0:00:00]} f4 {[%emt 0:00:00]} 0-1